fUST/lending_fUST_20250504
["ID","MTS","AMOUNT","RATE_DAILY","PERIOD"]
[359741465,1746293238059,-500.0,0.00018429,2]
[359741466,1746293238080,-500.0,0.00018429,2]
[359741467,1746293238101,-500.0,0.00018429,2]
[359741468,1746293238122,-500.0,0.00018429,2]
[359741469,1746293238144,-503.52613147,0.00018429,2]
[359741470,1746293238166,-500.0,0.00018429,2]
[359741471,1746293238188,-500.42169183,0.00018429,2]
[359741472,1746293238210,-500.0,0.00018443,2]
[359741473,1746293238230,-500.0,0.00018443,2]
[359741474,1746293238251,-500.0,0.00018459,2]
[359741475,1746293238272,-500.0,0.00018459,2]
[359741476,1746293238295,-500.0,0.00018459,2]
[359741477,1746293238316,-500.64140692,0.00018459,2]
[359741478,1746293238339,-680.98172416,0.00018538,2]
[359741479,1746293238361,-370.16,0.00018559,3]
[359741480,1746293238383,-400.0,0.00018569,2]
[359741481,1746293238406,-400.0,0.00018569,2]
[359741482,1746293238429,-400.0,0.00018569,2]
[359741483,1746293238451,-744.39,0.00018569,2]
[359741484,1746293238473,-400.0,0.00018569,2]
[359741485,1746293238494,-400.0,0.00018569,2]
[359741486,1746293238516,-343.02556645,0.00018569,2]
[359741487,1746293238539,-400.0,0.00018569,2]
[359741488,1746293238563,-533.64,0.00018569,2]
[359741489,1746293238585,-400.0,0.00018569,2]
[359741490,1746293238607,-400.0,0.00018569,2]
[359741491,1746293238630,-400.0,0.00018569,2]
[359741492,1746293238652,-541.69,0.00018569,2]
[359741493,1746293238674,-400.0,0.00018569,2]
[359741494,1746293238696,-400.0,0.00018569,2]
[359741495,1746293238724,-400.0,0.00018569,2]
[359741496,1746293238753,-410.14,0.00018569,2]
[359741497,1746293238775,-400.0,0.00018569,2]
[359741498,1746293238797,-400.0,0.00018569,2]
[359741499,1746293238820,-400.0,0.00018569,2]
[359741500,1746293238844,-400.0,0.00018569,2]
[359741501,1746293238870,-400.0,0.00018569,2]
[359741502,1746293238893,-400.0,0.00018569,2]
[359741503,1746293238915,-400.0,0.00018569,2]
[359741504,1746293238937,-400.0,0.00018569,2]
[359741505,1746293238960,-536.51,0.00018569,2]
[359741506,1746293238982,-491.4,0.00018569,2]
[359741507,1746293239004,-400.0,0.00018569,2]
[359741508,1746293239028,-400.0,0.00018569,2]
[359741509,1746293239053,-400.0,0.00018569,2]
[359741510,1746293239076,-400.0,0.00018569,2]
[359741511,1746293239099,-484.23,0.00018569,2]
[359741512,1746293239122,-400.0,0.00018569,2]
[359741513,1746293239144,-400.0,0.00018569,2]
[359741514,1746293239166,-1055.43,0.00018569,2]
[359741515,1746293239305,-400.0,0.00018569,2]
[359741516,1746293239327,-400.0,0.00018569,2]
[359741517,1746293239349,-1576.28,0.00018569,2]
[359741518,1746293239371,-704.09,0.00018569,2]
[359741519,1746293239394,-400.0,0.00018569,2]
[359741520,1746293239416,-400.0,0.00018569,2]
[359741521,1746293239438,-400.0,0.00018569,2]
[359741522,1746293239460,-400.0,0.00018569,2]
[359741523,1746293239483,-444.6,0.00018569,2]
[359741524,1746293239503,-400.0,0.00018569,2]
[359741525,1746293239524,-400.0,0.00018569,2]
[359741526,1746293239547,-400.0,0.00018569,2]
[359741527,1746293239571,-400.0,0.00018569,2]
[359741528,1746293239594,-445.18,0.00018569,2]
[359741529,1746293239615,-400.0,0.00018569,2]
[359741530,1746293239637,-400.0,0.00018569,2]
[359741531,1746293239658,-302.47649964,0.00018569,2]
[359741532,1746293239679,-519.5,0.00018569,2]
[359741533,1746293239703,-400.0,0.00018569,2]
[359741534,1746293239725,-400.0,0.00018569,2]
[359741535,1746293239747,-400.0,0.00018569,2]
[359741536,1746293239768,-648.7,0.00018569,2]
[359741537,1746293239794,-400.0,0.00018569,2]
[359741538,1746293239816,-707.95,0.00018569,2]
[359741539,1746293239837,-553.41,0.00018569,2]
[359741540,1746293239859,-461.15,0.00018569,2]
[359741541,1746293239879,-400.0,0.00018569,2]
[359741542,1746293239899,-400.0,0.00018569,2]
[359741543,1746293239919,-400.0,0.00018569,2]
[359741544,1746293239940,-737.45,0.00018569,2]
[359741545,1746293239961,-400.0,0.00018569,2]
[359741546,1746293239981,-400.0,0.00018569,2]
[359741547,1746293240003,-400.0,0.00018569,2]
[359741548,1746293240025,-400.0,0.00018569,2]
[359741549,1746293240047,-400.0,0.00018569,2]
[359741550,1746293240069,-400.0,0.00018569,2]
[359741551,1746293240089,-400.0,0.00018569,2]
[359741552,1746293240111,-400.0,0.00018569,2]
[359741553,1746293240133,-400.0,0.00018569,2]
[359741554,1746293240154,-400.0,0.00018569,2]
[359741555,1746293240175,-801.26,0.00018569,2]
[359741556,1746293240197,-400.0,0.00018569,2]
[359741557,1746293240219,-1011.56,0.00018569,2]
[359741558,1746293240241,-1481.15,0.00018569,2]
[359741559,1746293240262,-400.0,0.00018569,2]
[359741560,1746293240283,-400.0,0.00018569,2]
[359741561,1746293240304,-1772.47,0.00018569,2]
[359741562,1746293240325,-677.46,0.00018569,2]
[359741563,1746293240345,-400.0,0.00018569,2]
[359741564,1746293240365,-459.81,0.00018569,2]
[359741565,1746293240385,-622.59,0.00018569,2]
[359741566,1746293240406,-400.0,0.00018569,2]
[359741567,1746293240427,-400.0,0.00018569,2]
[359741568,1746293240449,-400.0,0.00018569,2]
[359741569,1746293240471,-400.0,0.00018569,2]
[359741570,1746293240492,-400.0,0.00018569,2]
[359741571,1746293240513,-661.01,0.00018569,2]
[359741572,1746293240534,-751.55,0.00018569,2]
[359741573,1746293240556,-400.0,0.00018569,2]
[359741574,1746293240576,-424.59,0.00018569,2]
[359741575,1746293240595,-400.0,0.00018569,2]
[359741576,1746293240616,-452.46,0.00018569,2]
[359741577,1746293240638,-1309.45,0.00018569,2]
[359741578,1746293240658,-400.0,0.00018569,2]
[359741579,1746293240678,-400.0,0.00018569,2]
[359741580,1746293240698,-431.75,0.00018569,2]
[359741581,1746293240726,-400.0,0.00018572,2]
[359741582,1746293240747,-400.0,0.00018572,2]
[359741583,1746293240767,-400.0,0.00018572,2]
[359741584,1746293240788,-2273.128356,0.00018572,2]
[359741585,1746293240808,-2273.128356,0.00018572,2]
[359741586,1746293240828,-153.307776,0.00018577,2]
[359741587,1746293240847,-153.307776,0.00018577,2]
[359741588,1746293240868,-153.307776,0.00018586,2]
[359741589,1746293240889,-153.307776,0.00018586,2]
[359741590,1746293240910,-500.0,0.0001863,2]
[359741591,1746293240931,-2273.128356,0.00018671,2]
[359741592,1746293240954,-2273.128356,0.00018671,2]
[359741593,1746293240974,-207.19950936,0.000187,2]
[359741594,1746293240994,-680.98172416,0.00018743,2]
[359741595,1746293241014,-1000.0,0.0001882,5]
[359741596,1746293241035,-400.0,0.00018843,2]
[359741597,1746293241057,-400.0,0.00018843,2]
[359741598,1746293241080,-400.0,0.00018843,2]
[359741599,1746293241100,-744.39,0.00018843,2]
[359741600,1746293241121,-400.0,0.00018843,2]
[359741601,1746293241141,-400.0,0.00018843,2]
[359741602,1746293241163,-400.0,0.00018843,2]
[359741603,1746293241183,-533.64,0.00018843,2]
[359741604,1746293241205,-250.64,0.00018843,2]
[359741605,1746293241225,-400.0,0.00018843,2]
[359741606,1746293241245,-541.69,0.00018843,2]
[359741607,1746293241264,-400.0,0.00018843,2]
[359741608,1746293241285,-400.0,0.00018843,2]
[359741609,1746293241306,-410.14,0.00018843,2]
[359741610,1746293241326,-400.0,0.00018843,2]
[359741611,1746293241347,-400.0,0.00018843,2]
[359741612,1746293241367,-400.0,0.00018843,2]
[359741613,1746293241388,-387.44075201,0.00018843,2]
[359741614,1746293241411,-400.0,0.00018843,2]
[359741615,1746293241433,-400.0,0.00018843,2]
[359741616,1746293241454,-400.0,0.00018843,2]
[359741617,1746293241475,-400.0,0.00018843,2]
[359741618,1746293241497,-536.51,0.00018843,2]
[359741619,1746293241518,-491.4,0.00018843,2]
[359741620,1746293241539,-400.0,0.00018843,2]
[359741621,1746293241561,-400.0,0.00018843,2]
[359741622,1746293241582,-400.0,0.00018843,2]
[359741623,1746293241604,-400.0,0.00018843,2]
[359741624,1746293241626,-484.23,0.00018843,2]
[359741625,1746293241647,-400.0,0.00018843,2]
[359741626,1746293241668,-400.0,0.00018843,2]
[359741627,1746293241689,-1055.43,0.00018843,2]
[359741628,1746293241712,-400.0,0.00018843,2]
[359741629,1746293241732,-400.0,0.00018843,2]
[359741630,1746293241753,-1576.28,0.00018843,2]
[359741631,1746293241776,-704.09,0.00018843,2]
[359741632,1746293241800,-324.53,0.00018843,2]
[359741633,1746293241822,-400.0,0.00018843,2]
[359741634,1746293241844,-400.0,0.00018843,2]
[359741635,1746293241865,-400.0,0.00018843,2]
[359741636,1746293241887,-444.6,0.00018843,2]
[359741637,1746293241907,-400.0,0.00018843,2]
[359741638,1746293241929,-400.0,0.00018843,2]
[359741639,1746293241951,-400.0,0.00018843,2]
[359741640,1746293242080,-400.0,0.00018843,2]
[359741641,1746293242103,-445.18,0.00018843,2]
[359741642,1746293242123,-400.0,0.00018843,2]
[359741643,1746293242144,-400.0,0.00018843,2]
[359741644,1746293242165,-519.5,0.00018843,2]
[359741645,1746293242186,-400.0,0.00018843,2]
[359741646,1746293242206,-400.0,0.00018843,2]
[359741647,1746293242227,-400.0,0.00018843,2]
[359741648,1746293242248,-648.7,0.00018843,2]
[359741649,1746293242268,-400.0,0.00018843,2]
[359741650,1746293242290,-707.95,0.00018843,2]
[359741651,1746293242311,-553.41,0.00018843,2]
[359741652,1746293242332,-461.15,0.00018843,2]
[359741653,1746293242352,-400.0,0.00018843,2]
[359741654,1746293242373,-400.0,0.00018843,2]
[359741655,1746293242394,-400.0,0.00018843,2]
[359741656,1746293242416,-737.45,0.00018843,2]
[359741657,1746293242438,-400.0,0.00018843,2]
[359741658,1746293242458,-400.0,0.00018843,2]
[359741659,1746293242478,-400.0,0.00018843,2]
[359741660,1746293242501,-400.0,0.00018843,2]
[359741661,1746293242521,-400.0,0.00018843,2]
[359741662,1746293242543,-400.0,0.00018843,2]
[359741663,1746293242563,-400.0,0.00018843,2]
[359741664,1746293242584,-400.0,0.00018843,2]
[359741665,1746293242604,-400.0,0.00018843,2]
[359741666,1746293242624,-801.26,0.00018843,2]
[359741667,1746293242645,-400.0,0.00018843,2]
[359741668,1746293242666,-1011.56,0.00018843,2]
[359741669,1746293242687,-1481.15,0.00018843,2]
[359741670,1746293242709,-400.0,0.00018843,2]
[359741671,1746293242729,-400.0,0.00018843,2]
[359741672,1746293242751,-1772.47,0.00018843,2]
[359741673,1746293242771,-677.46,0.00018843,2]
[359741674,1746293242794,-400.0,0.00018843,2]
[359741675,1746293242815,-459.81,0.00018843,2]
[359741676,1746293242837,-622.59,0.00018843,2]
[359741677,1746293242857,-400.0,0.00018843,2]
[359741678,1746293242878,-400.0,0.00018843,2]
[359741679,1746293242898,-400.0,0.00018843,2]
[359741680,1746293242920,-400.0,0.00018843,2]
[359741681,1746293242940,-400.0,0.00018843,2]
[359741682,1746293242960,-661.01,0.00018843,2]
[359741683,1746293242981,-751.55,0.00018843,2]
[359741684,1746293243002,-400.0,0.00018843,2]
[359741685,1746293243022,-424.59,0.00018843,2]
[359741686,1746293243044,-400.0,0.00018843,2]
[359741687,1746293243068,-452.46,0.00018843,2]
[359741688,1746293243095,-1309.45,0.00018843,2]
[359741689,1746293243116,-400.0,0.00018843,2]
[359741690,1746293243139,-400.0,0.00018843,2]
[359741691,1746293243160,-400.0,0.00018846,2]
[359741692,1746293243181,-400.0,0.00018846,2]
[359741693,1746293243204,-2273.128356,0.00018846,2]
[359741694,1746293243224,-2273.128356,0.00018846,2]
[359741695,1746293243244,-493.20666216,0.00018848,2]
[359741696,1746293243264,-153.307776,0.00018849,2]
[359741697,1746293243284,-153.307776,0.00018849,2]
[359741698,1746293243304,-153.307776,0.00018858,2]
[359741699,1746293243324,-153.307776,0.00018858,2]
[359741700,1746293243345,-153.307776,0.0001887,2]
[359741701,1746293243365,-153.307776,0.0001887,2]
[359741702,1746293243387,-250.0,0.0001889,2]
[359741703,1746293243408,-1276.89982201,0.000189,2]
[359741704,1746293243430,-161.376607,0.00018901,2]
[359741705,1746293243450,-250.0,0.00019,2]
[359741706,1746293243470,-2273.128356,0.00019,2]
[359741707,1746293243491,-2273.128356,0.00019,2]
[359741708,1746293243516,-10778.46688028,0.00019,2]
[359741709,1746293243536,-2924.7437354,0.00019025,2]
[359741710,1746293243557,-153.307776,0.00019073,2]
[359741711,1746293243576,-153.307776,0.00019073,2]
[359741712,1746293243595,-153.307776,0.000191,2]
[359741713,1746293243616,-153.307776,0.000191,2]
[359741714,1746293243637,-400.0,0.00019117,2]
[359741715,1746293243658,-332.29350104,0.00019117,2]
[359741716,1746293243679,-400.0,0.00019117,2]
[359741717,1746293243699,-744.39,0.00019117,2]
[359741718,1746293243723,-237.52363477,0.00019117,2]
[359741719,1746293243744,-400.0,0.00019117,2]
[359741720,1746293243766,-400.0,0.00019117,2]
[359741721,1746293243789,-533.64,0.00019117,2]
[359741722,1746293243810,-400.0,0.00019117,2]
[359741723,1746293243831,-541.69,0.00019117,2]
[359741724,1746293243850,-400.0,0.00019117,2]
[359741725,1746293243872,-400.0,0.00019117,2]
[359741726,1746293243891,-400.0,0.00019117,2]
[359741727,1746293243912,-410.14,0.00019117,2]
[359741728,1746293243932,-400.0,0.00019117,2]
[359741729,1746293243953,-400.0,0.00019117,2]
[359741730,1746293243973,-400.0,0.00019117,2]
[359741731,1746293243994,-400.0,0.00019117,2]
[359741732,1746293244017,-400.0,0.00019117,2]
[359741733,1746293244038,-400.0,0.00019117,2]
[359741734,1746293244060,-536.51,0.00019117,2]
[359741735,1746293244081,-491.4,0.00019117,2]
[359741736,1746293244104,-400.0,0.00019117,2]
[359741737,1746293244125,-400.0,0.00019117,2]
[359741738,1746293244145,-400.0,0.00019117,2]
[359741739,1746293244167,-400.0,0.00019117,2]
[359741740,1746293244188,-484.23,0.00019117,2]
[359741741,1746293244208,-400.0,0.00019117,2]
[359741742,1746293244229,-400.0,0.00019117,2]
[359741743,1746293244250,-1055.43,0.00019117,2]
[359741744,1746293244270,-400.0,0.00019117,2]
[359741745,1746293244292,-400.0,0.00019117,2]
[359741746,1746293244316,-1576.28,0.00019117,2]
[359741747,1746293244338,-704.09,0.00019117,2]
[359741748,1746293244359,-400.0,0.00019117,2]
[359741749,1746293244381,-400.0,0.00019117,2]
[359741750,1746293244403,-400.0,0.00019117,2]
[359741751,1746293244423,-444.6,0.00019117,2]
[359741752,1746293244445,-400.0,0.00019117,2]
[359741753,1746293244466,-400.0,0.00019117,2]
[359741754,1746293244488,-400.0,0.00019117,2]
[359741755,1746293244509,-400.0,0.00019117,2]
[359741756,1746293244530,-445.18,0.00019117,2]
[359741757,1746293244552,-400.0,0.00019117,2]
[359741758,1746293244573,-400.0,0.00019117,2]
[359741759,1746293244594,-519.5,0.00019117,2]
[359741760,1746293244724,-400.0,0.00019117,2]
[359741761,1746293244746,-400.0,0.00019117,2]
[359741762,1746293244768,-400.0,0.00019117,2]
[359741763,1746293244793,-648.7,0.00019117,2]
[359741764,1746293244814,-400.0,0.00019117,2]
[359741765,1746293244837,-707.95,0.00019117,2]
[359741766,1746293244859,-553.41,0.00019117,2]
[359741767,1746293244881,-461.15,0.00019117,2]
[359741768,1746293244903,-400.0,0.00019117,2]
[359741769,1746293244924,-400.0,0.00019117,2]
[359741770,1746293244948,-400.0,0.00019117,2]
[359741771,1746293244969,-737.45,0.00019117,2]
[359741772,1746293244991,-400.0,0.00019117,2]
[359741773,1746293245013,-400.0,0.00019117,2]
[359741774,1746293245034,-400.0,0.00019117,2]
[359741775,1746293245055,-400.0,0.00019117,2]
[359741776,1746293245076,-400.0,0.00019117,2]
[359741777,1746293245100,-400.0,0.00019117,2]
[359741778,1746293245121,-400.0,0.00019117,2]
[359741779,1746293245143,-400.0,0.00019117,2]
[359741780,1746293245164,-400.0,0.00019117,2]
[359741781,1746293245185,-801.26,0.00019117,2]
[359741782,1746293245206,-400.0,0.00019117,2]
[359741783,1746293245228,-1011.56,0.00019117,2]
[359741784,1746293245251,-1481.15,0.00019117,2]
[359741785,1746293245272,-240.31060417,0.00019117,2]
[359741786,1746293245295,-400.0,0.00019117,2]
[359741787,1746293245316,-1772.47,0.00019117,2]
[359741788,1746293245338,-677.46,0.00019117,2]
[359741789,1746293245360,-400.0,0.00019117,2]
[359741790,1746293245381,-459.81,0.00019117,2]
[359741791,1746293245404,-622.59,0.00019117,2]
[359741792,1746293245426,-400.0,0.00019117,2]
[359741793,1746293245448,-400.0,0.00019117,2]
[359741794,1746293245471,-400.0,0.00019117,2]
[359741795,1746293245493,-400.0,0.00019117,2]
[359741796,1746293245514,-400.0,0.00019117,2]
[359741797,1746293245536,-661.01,0.00019117,2]
[359741798,1746293245562,-751.55,0.00019117,2]
[359741799,1746293245584,-400.0,0.00019117,2]
[359741800,1746293245608,-424.59,0.00019117,2]
[359741801,1746293245631,-400.0,0.00019117,2]
[359741802,1746293245654,-452.46,0.00019117,2]
[359741803,1746293245676,-1309.45,0.00019117,2]
[359741804,1746293245698,-400.0,0.00019117,2]
[359741805,1746293245721,-400.0,0.00019117,2]
[359741806,1746293245743,-400.0,0.0001912,2]
[359741807,1746293245763,-400.0,0.0001912,2]
[359741808,1746293245785,-2273.128356,0.0001912,2]
[359741809,1746293245808,-2273.128356,0.0001912,2]
[359741810,1746293245829,-153.307776,0.00019132,2]
[359741811,1746293245850,-153.307785,0.00019132,2]
[359741812,1746293245871,-151.0,0.00019178,2]
[359741813,1746293245892,-500.0,0.00019178,2]
[359741814,1746293245914,-500.0,0.00019178,2]
[359741815,1746293245934,-151.0,0.00019178,2]
[359741816,1746293245954,-500.0,0.00019178,2]
[359741817,1746293245974,-151.0,0.00019178,2]
[359741818,1746293245996,-151.90254686,0.00019178,2]
[359741819,1746293246017,-151.0,0.00019178,2]
[359741820,1746293246037,-500.0,0.00019178,2]
[359741821,1746293246065,-513.088217,0.00019178,2]
[359741822,1746293246086,-300.0,0.00019178,2]
[359741823,1746293246105,-500.000001,0.000192,2]
[359741824,1746293246126,-481.95548743,0.00019307,2]
[359741825,1746293246146,-2141.6442199,0.00019329,2]
[359741826,1746293246168,-614.81908692,0.00019373,2]
[359741827,1746293246189,-2273.128356,0.00019373,2]
[359741828,1746293246210,-2273.128356,0.00019373,2]
[359741829,1746293246230,-151.0,0.00019379,2]
[359741830,1746293246251,-215.0738,0.00019379,2]
[359741831,1746293246272,-534.76962529,0.00019391,2]
[359741832,1746293246295,-400.0,0.00019391,2]
[359741833,1746293246315,-744.39,0.00019391,2]
[359741834,1746293246336,-400.0,0.00019391,2]
[359741835,1746293246357,-400.0,0.00019391,2]
[359741836,1746293246378,-533.64,0.00019391,2]
[359741837,1746293246400,-400.0,0.00019391,2]
[359741838,1746293246420,-541.69,0.00019391,2]
[359741839,1746293246441,-400.0,0.00019391,2]
[359741840,1746293246463,-400.0,0.00019391,2]
[359741841,1746293246485,-410.14,0.00019391,2]
[359741842,1746293246506,-400.0,0.00019391,2]
[359741843,1746293246527,-388.48624889,0.00019391,2]
[359741844,1746293246549,-268.28967511,0.00019391,2]
[359741845,1746293246572,-400.0,0.00019391,2]
[359741846,1746293246595,-400.0,0.00019391,2]
[359741847,1746293246618,-400.0,0.00019391,2]
[359741848,1746293246640,-400.0,0.00019391,2]
[359741849,1746293246661,-536.51,0.00019391,2]
[359741850,1746293246684,-491.4,0.00019391,2]
[359741851,1746293246707,-400.0,0.00019391,2]
[359741852,1746293246729,-400.0,0.00019391,2]
[359741853,1746293246752,-400.0,0.00019391,2]
[359741854,1746293246773,-400.0,0.00019391,2]
[359741855,1746293246796,-484.23,0.00019391,2]
[359741856,1746293246818,-400.0,0.00019391,2]
[359741857,1746293246839,-400.0,0.00019391,2]
[359741858,1746293246861,-1055.43,0.00019391,2]
[359741859,1746293246881,-296.19083168,0.00019391,2]
[359741860,1746293246902,-408.3,0.00019391,2]
[359741861,1746293246924,-1576.28,0.00019391,2]
[359741862,1746293246945,-704.09,0.00019391,2]
[359741863,1746293246966,-533.31909182,0.00019391,2]
[359741864,1746293246987,-400.0,0.00019391,2]
[359741865,1746293247008,-400.0,0.00019391,2]
[359741866,1746293247030,-444.6,0.00019391,2]
[359741867,1746293247052,-400.0,0.00019391,2]
[359741868,1746293247072,-400.0,0.00019391,2]
[359741869,1746293247094,-400.0,0.00019391,2]
[359741870,1746293247115,-400.0,0.00019391,2]
[359741871,1746293247136,-445.18,0.00019391,2]
[359741872,1746293247158,-406.92,0.00019391,2]
[359741873,1746293247179,-400.0,0.00019391,2]
[359741874,1746293247202,-519.5,0.00019391,2]
[359741875,1746293247331,-400.0,0.00019391,2]
[359741876,1746293247353,-400.0,0.00019391,2]
[359741877,1746293247374,-400.0,0.00019391,2]
[359741878,1746293247395,-648.7,0.00019391,2]
[359741879,1746293247417,-400.0,0.00019391,2]
[359741880,1746293247438,-707.95,0.00019391,2]
[359741881,1746293247461,-553.41,0.00019391,2]
[359741882,1746293247483,-461.15,0.00019391,2]
[359741883,1746293247504,-400.0,0.00019391,2]
[359741884,1746293247525,-400.0,0.00019391,2]
[359741885,1746293247548,-737.45,0.00019391,2]
[359741886,1746293247570,-400.0,0.00019391,2]
[359741887,1746293247592,-400.0,0.00019391,2]
[359741888,1746293247614,-400.0,0.00019391,2]
[359741889,1746293247635,-400.0,0.00019391,2]
[359741890,1746293247657,-400.0,0.00019391,2]
[359741891,1746293247678,-400.0,0.00019391,2]
[359741892,1746293247700,-400.0,0.00019391,2]
[359741893,1746293247725,-400.0,0.00019391,2]
[359741894,1746293247748,-400.0,0.00019391,2]
[359741895,1746293247769,-801.26,0.00019391,2]
[359741896,1746293247793,-400.0,0.00019391,2]
[359741897,1746293247816,-1011.56,0.00019391,2]
[359741898,1746293247838,-1481.15,0.00019391,2]
[359741899,1746293247859,-400.0,0.00019391,2]
[359741900,1746293247880,-1772.47,0.00019391,2]
[359741901,1746293247904,-677.46,0.00019391,2]
[359741902,1746293247925,-400.0,0.00019391,2]
[359741903,1746293247947,-459.81,0.00019391,2]
[359741904,1746293247969,-622.59,0.00019391,2]
[359741905,1746293247991,-400.0,0.00019391,2]
[359741906,1746293248013,-400.0,0.00019391,2]
[359741907,1746293248035,-400.0,0.00019391,2]
[359741908,1746293248057,-400.0,0.00019391,2]
[359741909,1746293248078,-400.0,0.00019391,2]
[359741910,1746293248100,-661.01,0.00019391,2]
[359741911,1746293248121,-751.55,0.00019391,2]
[359741912,1746293248141,-400.0,0.00019391,2]
[359741913,1746293248162,-424.59,0.00019391,2]
[359741914,1746293248183,-400.0,0.00019391,2]
[359741915,1746293248205,-452.46,0.00019391,2]
[359741916,1746293248228,-1309.45,0.00019391,2]
[359741917,1746293248249,-400.0,0.00019391,2]
[359741918,1746293248271,-400.0,0.00019391,2]
[359741919,1746293248292,-400.0,0.00019394,2]
[359741920,1746293248313,-400.0,0.00019394,2]
[359741921,1746293248334,-2273.128356,0.00019394,2]
[359741922,1746293248355,-2273.128356,0.00019394,2]
[359741923,1746293248375,-100489.32,0.000194,2]
[359741924,1746293248396,-2273.128356,0.000194,2]
[359741925,1746293248416,-2273.128356,0.000194,2]
[359741926,1746293248438,-151.0,0.00019452,2]
[359741927,1746293248459,-500.0,0.00019452,2]
[359741928,1746293248479,-500.0,0.00019452,2]
[359741929,1746293248499,-198.0,0.00019452,2]
[359741930,1746293248520,-500.0,0.00019452,2]
[359741931,1746293248540,-198.0,0.00019452,2]
[359741932,1746293248562,-151.0,0.00019452,2]
[359741933,1746293248585,-500.0,0.00019452,2]
[359741934,1746293248606,-1000.0,0.00019452,2]
[359741935,1746293248629,-10778.46688005,0.00019624,2]
[359741936,1746293248650,-182.16284668,0.0001965,3]
[359741937,1746293248672,-160.0,0.0001965,3]
[359741938,1746293248694,-12601.56422439,0.0001965,3]
[359741939,1746293248720,-841.47485993,0.0001965,3]
[359741940,1746293248742,-420.0,0.0001966,2]
[359741941,1746293248765,-420.0,0.00019661,2]
[359741942,1746293248789,-400.0,0.00019665,2]
[359741943,1746293248811,-744.39,0.00019665,2]
[359741944,1746293248833,-400.0,0.00019665,2]
[359741945,1746293248854,-400.0,0.00019665,2]
[359741946,1746293248876,-533.64,0.00019665,2]
[359741947,1746293248897,-400.0,0.00019665,2]
[359741948,1746293248918,-541.69,0.00019665,2]
[359741949,1746293248940,-2273.128356,0.00019665,2]
[359741950,1746293248961,-2273.128356,0.00019665,2]
[359741951,1746293248982,-400.0,0.00019665,2]
[359741952,1746293249003,-400.0,0.00019665,2]
[359741953,1746293249024,-400.0,0.00019665,2]
[359741954,1746293249046,-410.14,0.00019665,2]
[359741955,1746293249067,-400.0,0.00019665,2]
[359741956,1746293249089,-400.0,0.00019665,2]
[359741957,1746293249110,-400.0,0.00019665,2]
[359741958,1746293249131,-400.0,0.00019665,2]
[359741959,1746293249153,-536.51,0.00019665,2]
[359741960,1746293249176,-491.4,0.00019665,2]
[359741961,1746293249197,-400.0,0.00019665,2]
[359741962,1746293249218,-321.24173791,0.00019665,2]
[359741963,1746293249239,-400.0,0.00019665,2]
[359741964,1746293249261,-400.0,0.00019665,2]